Cogmind - Beta 12 @@@ ROGUE MODE // 2024.01.14 @ 13:56:36 Player: UberDoot Result: Destroyed self with Heavy Rocket Launcher Performance ------------- Evolutions (3) 1500 Regions Visited (8) 1600 Robots Destroyed (100) 500 Value Destroyed (2860) 2860 Prototype IDs (2) 40 Alien Tech Used (0) 0 Bonus (1074) 1074 TOTAL SCORE: 7574 Bonus ------- High Alert Combat Kills 206 Follower Combat Kills 186 Entered Garrisons 200 Used RIF Installer 500 Friendly Fire -18 Cogmind --------- Core Integrity 0/700 Matter 98/300 Energy 100/100 System Corruption 4% Temperature Cool (0) Movement Core (100) Ox1 Location -7/Factory Parts ------- > --- POWER (1) -------- (None) > --- PROPULSION (4) --- (None) > --- UTILITY (5) ------ Small Storage Unit > --- WEAPON (3) ------- (None) > --- INVENTORY (8) ---- High-capacity Matter Pod (33) Weapon Cycler Improved Transmission Jammer Wave Gun Magnetic Acceleration Cannon Enhanced Gauss Cannon Peak State ------------ > --- POWER ------------ Micro Fission Core > --- PROPULSION ------- Improved Medium Treads Carbon-fiber Leg Flexi-carbon Leg Flexi-carbon Leg > --- UTILITY ---------- Huge Storage Unit Recoil Stabilizer Improved Transmission Jammer Improved Heavy Armor Plating > --- WEAPON ----------- Wave Gun Gauss Rifle Blade Saw > --- INVENTORY -------- Gyrokinetic Inverter Small Storage Unit Huge Storage Unit High-capacity Matter Pod Compact Matter Pod Targeting Computer Weapon Cycler Light Armor Plating Improved Heavy Armor Plating Improved Heavy Armor Plating Improved Shield Generator Advanced Shield Generator High-powered Tractor Beam Wave Gun Minigun Magnetic Acceleration Cannon Enhanced Gauss Cannon Enhanced Gauss Cannon Heavy Rocket Launcher Heavy Rocket Launcher Heavy Rocket Launcher Heavy Rocket Launcher [Rating: 66] Favorites ----------- Power Ion Engine Engine Ion Engine Power Core Micro Fission Core Propulsion Light Treads Treads Light Treads Leg Carbon-fiber Leg Wheel Wheel Hover Unit Gravmag System Flight Unit Xenon Bombardment Thruster Utility Light Armor Plating Device Seismic Detector Storage Large Storage Unit Processor Improved Signal Interpreter Hackware Advanced Hacking Suite Protection Light Armor Plating Weapon Light Cannon Energy Gun Wave Gun Energy Cannon Ion Cannon Ballistic Gun Gauss Rifle Ballistic Cannon Light Cannon Launcher Rocket Launcher Special Weapon Remote Datajack Impact Weapon Hammer Slashing Weapon Blade Saw Build | -11 -10 -10 -10 -9 -8 -8 -8 -7 ------- Run | Jun Mat Min Exi Min Mat Sto Gar Fac Slots Evolved 6 | . . . . . 4 . . 2 Power . | . . . . . . . . . Propulsion 2 | . . . . . 2 . . . Utility 3 | . . . . . 2 . . 1 Weapon 1 | . . . . . . . . 1 Parts Attached 148 | 9 30 1 1 5 26 1 39 36 Power 17 | 1 4 . 1 2 4 . 2 3 Engine 13 | 1 4 . 1 1 3 . 2 1 Core 4 | . . . . 1 1 . . 2 Reactor . | . . . . . . . . . Propulsion 38 | 4 6 . . . 4 1 15 8 Treads 17 | . 6 . . . 2 1 8 . Leg 11 | 2 . . . . . . 6 3 Wheel 5 | 2 . . . . 2 . 1 . Hover 3 | . . . . . . . . 3 Flight 2 | . . . . . . . . 2 Utility 38 | 2 7 1 . 1 6 . 9 12 Device 16 | 1 1 . . . 2 . 3 9 Storage 9 | 1 5 . . . 1 . . 2 Processor 2 | . . . . 1 1 . . . Hackware 1 | . . . . . . . 1 . Protection 10 | . 1 1 . . 2 . 5 1 Artifact . | . . . . . . . . . Weapon 55 | 2 13 . . 2 12 . 13 13 Energy Gun 15 | . 2 . . . 5 . 3 5 Energy Cannon 2 | . 1 . . . 1 . . . Ballistic Gun 18 | 2 6 . . . 3 . 5 2 Ballistic Cannon 5 | . 2 . . 1 . . 1 1 Launcher 10 | . 2 . . 1 1 . 4 2 Special Weapon 1 | . . . . . . . . 1 Impact Weapon 2 | . . . . . 2 . . . Slashing Weapon 2 | . . . . . . . . 2 Piercing Weapon . | . . . . . . . . . Special Melee Weapon . | . . . . . . . . . Unidentified Prototypes 2 | . . . . . 2 . . . Parts Lost 29 | . . . . . 2 1 9 17 Power 5 | . . . . . 1 . 2 2 Propulsion 11 | . . . . . 1 1 3 6 Utility 6 | . . . . . . . 3 3 Weapon 7 | . . . . . . . 1 6 Highest Loss Streak 11 | . . . . . 2 1 3 11 To Critical Strikes . | . . . . . . . . . Average Slot Usage (%) 96 | . 99 100 99 99 99 100 95 86 Engine 10 | . 13 14 13 13 6 9 8 4 Treads 22 | . 24 28 28 28 26 18 19 9 Leg 3 | . . . . . . . 12 9 Wheel 2 | . 2 . . . 9 18 3 . Device 6 | . 8 . . . 8 9 4 15 Storage 11 | . 14 14 14 14 9 9 9 7 Processor 3 | . . . . 2 9 9 9 1 Protection 8 | . 5 14 14 11 9 9 8 4 Energy Gun 5 | . 4 . . . 9 9 8 9 Ballistic Gun 5 | . 8 . . . 5 9 7 9 Ballistic Cannon 12 | . 15 28 28 28 1 . . . Naked Turns . | . . . . . . . . . Heaviest Build 120 | 12 34 34 34 34 100 98 120 119 Greatest Support 90 | 20 40 40 40 40 60 20 90 90 Greatest Overweight (x) 9 | 3 1 . . . 9 4 9 5 Average Overweight (x) . | . . . . . 1 4 1 1 Largest Inventory Capacity 25 | 8 25 15 15 15 25 25 25 25 Average Capacity 18 | 7 12 15 15 15 23 25 25 19 Most Carried 25 | 8 15 15 15 15 25 25 25 25 Average Carried 17 | 5 12 14 14 14 23 24 24 19 Final Capacity 25 | 8 15 15 15 15 25 25 25 8 Final Carried 25 | 8 15 15 15 15 25 25 25 6 Class Distribution -------------------- 46% | Mutant 42% | Scavenger-Mutant 10% | Scavenger-Tank Dominant Class ---------------- Mutant | -10/Materials Mutant | -10/Mines Mutant | -10/Exiles Mutant | -9/Mines Scavenger-Mutant | -8/Materials Scavenger-Mutant | -8/Storage Scavenger-Mutant | -8/Garrison Scavenger-Tank | -7/Factory Resources | -11 -10 -10 -10 -9 -8 -8 -8 -7 ----------- Run | Jun Mat Min Exi Min Mat Sto Gar Fac Matter Collected 2843 | 350 423 366 . 162 384 124 742 292 Remotely 32 | . . . . . . . 32 . Salvage Created 3235 | 119 448 210 . 452 769 . 560 677 Parts 203 | 12 33 13 . 19 48 . 44 34 Haulers Intercepted 7 | . 2 . . . 5 . . . Recyclers Shooed 10 | 2 7 . . 1 . . . . Parts Field Recycled . | . . . . . . . . . Retrieved Matter . | . . . . . . . . . Parts Self-Destructed . | . . . . . . . . . Prevented . | . . . . . . . . . Kills | -11 -10 -10 -10 -9 -8 -8 -8 -7 ------- Run | Jun Mat Min Exi Min Mat Sto Gar Fac Combat Hostiles Destroyed 66 | . 12 2 . 5 13 . 19 15 Melee 1 | . . . . . . . . 1 Guns 24 | . 7 . . . 4 . 8 5 Cannons 8 | . 1 2 . 3 2 . . . AOE 33 | . 4 . . 2 7 . 11 9 Classes Destroyed 15 | 3 6 . . . 2 . 2 2 Worker 3 | 2 . . . . . . . 1 Builder 4 | . 1 . . . 2 . . 1 Tunneler 3 | 2 . . . 1 . . . . Hauler 7 | . 2 . . . 5 . . . Recycler 12 | 1 2 2 . 5 1 . . 1 Operator 2 | . 2 . . . . . . . Watcher 3 | . 1 . . . 1 . . 1 Swarmer 18 | . 9 . . 3 3 . 3 . Cutter 5 | . . . . . . . 2 3 Grunt 23 | . 3 2 . 2 6 . 5 5 Sentry 10 | . . . . . 2 . 5 3 Specialist 2 | . . . . . . . . 2 Hunter 5 | . . . . . 2 . 3 . Programmer 2 | . . . . . . . . 2 Behemoth 1 | . . . . . . . 1 . Best Kill Streak 11 | 4 6 1 . 4 5 . 5 11 Combat Bots Only 9 | . 5 1 . 3 3 . 5 9 Max Kills in Single Turn 3 | 1 3 1 . 2 2 . 3 2 Gunslinging . | . . . . . . . . . Exploded 3 | . 3 . . 2 2 . 3 2 Melee 1 | . . . . . . . . 1 Uniques/NPCs Destroyed . | . . . . . . . . . Combat | -11 -10 -10 -10 -9 -8 -8 -8 -7 -------- Run | Jun Mat Min Exi Min Mat Sto Gar Fac Damage Taken 5790 | . 434 35 . 165 624 86 1483 2963 Core 972 | . 67 . . 29 50 28 88 710 Absorbed by Shields 30 | . . . . . . . 30 . Regen/Repaired (Parts) 101 | . 101 . . . . . . . Core Remaining (%) 76 | 100 . . . 61 . . 69 . Volleys Fired 253 | 15 60 6 . 18 43 2 59 50 Largest 3 | 2 2 2 . 2 2 2 2 3 Hottest 190 | 40 130 70 . 70 122 86 109 190 Shots Fired 465 | 30 113 12 . 34 74 4 94 104 Gun 319 | 30 87 . . . 41 4 70 87 Cannon 93 | . 21 12 . 33 26 . 1 . Launcher 50 | . 5 . . 1 7 . 23 14 Special 3 | . . . . . . . . 3 Kinetic 269 | 30 81 12 . 33 30 2 33 48 Thermal 139 | . 27 . . . 37 2 38 35 Explosive 50 | . 5 . . 1 7 . 23 14 Electromagnetic 4 | . . . . . . . . 4 Robot Hit Streak 15 | 8 8 2 . 10 11 1 7 15 Robot Miss Streak 5 | 2 5 2 . 1 3 1 4 5 Penetration Max . | . . . . . . . . . Secondary Targets 2 | . 2 . . . . . . . Max Gunslinging Chain 1 | . 1 . . . . . . . Shots Hit Robots 270 | 20 52 5 . 25 45 2 47 74 Core Hits 170 | 8 28 4 . 13 35 1 44 37 Critical Kills 1 | . . . . . . . . 1 Critical Parts Destroyed 1 | . 1 . . . . . . . Critical Strikes 10 | . 2 1 . 1 3 . . 3 Burn 5 | . 1 . . . 3 . . 1 Destroy 3 | . 1 . . . . . . 2 Blast 2 | . . 1 . 1 . . . . Melee Attacks 15 | . . . . . 8 . . 7 Impact 8 | . . . . . 8 . . . Slashing 7 | . . . . . . . . 7 Piercing . | . . . . . . . . . Sneak Attacks . | . . . . . . . . . Combat Hostiles . | . . . . . . . . . Follow-up Attacks . | . . . . . . . . . Damage Inflicted 8068 | 228 1018 135 . 586 1492 33 1964 2612 Guns 3166 | 228 523 . . . 470 33 629 1283 Cannons 1000 | . 105 120 . 440 335 . . . Explosions 3729 | . 384 . . 143 687 . 1335 1180 Melee 87 | . . . . . . . . 87 Ramming 86 | . 6 15 . 3 . . . 62 Kinetic 2536 | 228 504 120 . 440 298 33 301 612 Thermal 1622 | . 124 . . . 507 . 328 663 Explosive 3729 | . 384 . . 143 687 . 1335 1180 Electromagnetic 8 | . . . . . . . . 8 Impact . | . . . . . . . . . Slashing 87 | . . . . . . . . 87 Piercing . | . . . . . . . . . Highest Corruption 4 | . . . . . 1 1 1 4 Average Corruption 1 | . . . . . 1 1 1 1 Corruption Purged . | . . . . . . . . . Corruption Blocked 8 | . . . . . . . . 8 Effects 19 | . . . . . 7 1 10 1 Message Errors 5 | . . . . . 2 . 3 . Matter Fused 5 | . . . . . 1 1 2 1 Heat Flow Errors 2 | . . . . . 1 . 1 . Energy Discharges 1 | . . . . . 1 . . . Data Loss (minor) 3 | . . . . . 1 . 2 . Misfires 2 | . . . . . . . 2 . Alerts 1 | . . . . . 1 . . . Overload Shots . | . . . . . . . . . Overflow Damage 179 | . 13 . . 1 84 . 3 78 Projectiles 1 | . . . . 1 . . . . Explosions 178 | . 13 . . . 84 . 3 78 Melee . | . . . . . . . . . Knockbacks 12 | . 2 1 . 5 4 . . . Impact . | . . . . . . . . . Kinetic 11 | . 2 1 . 4 4 . . . Secondary 1 | . . . . 1 . . . . Self-Inflicted Damage 486 | . 19 . . 41 30 . 159 237 Shots 14 | . 1 . . 1 1 . 5 6 Rammed 11 | . 3 1 . 1 . . . 6 Targets Rammed 15 | . 3 1 . 1 . . . 10 Kicked 4 | . . . . . . . . 4 Crushed . | . . . . . . . . . Highest Temperature 433 | . 307 36 . 162 390 90 235 433 Average Temperature 91 | . 99 16 . 54 102 51 54 149 Received Heat Transfer 1281 | . 18 12 . 60 207 27 207 750 Effects 8 | . . . . . 1 . . 7 Shutdowns 1 | . . . . . 1 . . . Energy Bleed 1 | . . . . . . . . 1 Interference 3 | . . . . . . . . 3 Short Circuit 3 | . . . . . . . . 3 Siege Activations . | . . . . . . . . . Robots Corrupted . | . . . . . . . . . Combat Hostiles . | . . . . . . . . . Parts Fried . | . . . . . . . . . Impact Corruptions . | . . . . . . . . . Robots Melted . | . . . . . . . . . Combat Hostiles . | . . . . . . . . . Parts Melted 6 | . 1 . . . . . 1 4 Heat Transferred 3072 | . 370 . . . 1110 . 555 1037 Parts Sabotaged . | . . . . . . . . . Parts Stolen . | . . . . . . . . . Parts Stripped . | . . . . . . . . . Power Chain Reactions . | . . . . . . . . . Missiles Intercepted . | . . . . . . . . . Alert | -11 -10 -10 -10 -9 -8 -8 -8 -7 ------- Run | Jun Mat Min Exi Min Mat Sto Gar Fac Peak Influence 828 | 25 308 69 . 96 244 180 828 560 Initial 418 | . 16 2 . . . 102 117 418 Average 195 | 8 94 6 . 31 49 111 547 342 Maximum Alert Level 3 | . 1 . . . 1 . 3 2 Low Security (%) 62 | 100 89 100 . 100 95 100 4 . Level 1 21 | . 10 . . . 4 . 38 70 Level 2 9 | . . . . . . . 22 30 Level 3 6 | . . . . . . . 35 . Level 4 . | . . . . . . . . . Level 5 . | . . . . . . . . . High Security . | . . . . . . . . . Max Security . | . . . . . . . . . Squads Dispatched 16 | . 1 . . . 8 . . 7 Investigation 2 | . . . . . 2 . . . Extermination 3 | . . . . . . . . 3 Reinforcement 7 | . 1 . . . 2 . . 4 Assault . | . . . . . . . . . Garrison 4 | . . . . . 4 . . . Intercept . | . . . . . . . . . Searches Triggered . | . . . . . . . . . Construction Impeded 1 | . . . . . 1 . . . Haulers Reinforced 1 | . . . . . . . . 1 Active Scanning Responses . | . . . . . . . . . Cargo Convoy Interrupts 1 | . . . . . . . . 1 Stealth | -11 -10 -10 -10 -9 -8 -8 -8 -7 --------- Run | Jun Mat Min Exi Min Mat Sto Gar Fac Distress Signals 5 | . 3 . . . . 1 . 1 Communications Jammed 9 | . . . . . . . . 9 Distress Signals 9 | . . . . . . . . 9 Times Spotted 121 | . 29 5 . 6 18 2 25 36 Peak Tracking Total 10 | . 6 2 . 3 4 2 5 10 Tactical Retreats 11 | . 3 . . . 1 . 3 4 Traps | -11 -10 -10 -10 -9 -8 -8 -8 -7 ------- Run | Jun Mat Min Exi Min Mat Sto Gar Fac Traps Triggered 7 | . 1 . . . . . 5 1 Indirectly . | . . . . . . . . . Trap Hack Attempts . | . . . . . . . . . Triggered . | . . . . . . . . . Disarmed . | . . . . . . . . . Reprogrammed . | . . . . . . . . . Reused . | . . . . . . . . . Traps Extracted . | . . . . . . . . . Installed . | . . . . . . . . . Triggered 1 | . . . . . . . . 1 Machines | -11 -10 -10 -10 -9 -8 -8 -8 -7 ---------- Run | Jun Mat Min Exi Min Mat Sto Gar Fac Machines Disabled 10 | . 1 . . 1 1 . 4 3 Max in Single Turn 2 | . 1 . . 1 1 . 2 1 Garrison Relay 1 | . . . . . . . 1 . Machines Repaired . | . . . . . . . . . Machines Sabotaged . | . . . . . . . . . Overloaded Fab Kills . | . . . . . . . . . Hacking | -11 -10 -10 -10 -9 -8 -8 -8 -7 --------- Run | Jun Mat Min Exi Min Mat Sto Gar Fac Machines Accessed 26 | . 9 1 3 . 5 3 2 3 Terminals 15 | . 6 . . . 4 1 2 2 Fabricators . | . . . . . . . . . Repair Stations 1 | . 1 . . . . . . . Recycling Units 3 | . 2 . . . . 1 . . Scanalyzers 1 | . . . . . . . . 1 Garrison Access 2 | . . . . . 1 1 . . Total Hacks 62 | . 28 1 3 . 13 4 4 9 Successful 33 | . 13 1 3 . 5 2 2 7 Failed 29 | . 15 . . . 8 2 2 2 Catastrophic 4 | . 2 . . . . 1 . 1 Database Lockouts . | . . . . . . . . . Manual 30 | . 24 . . . 4 . 1 1 Terminals 38 | . 20 . . . 10 1 4 3 Fabricators . | . . . . . . . . . Repair Stations 5 | . 5 . . . . . . . Recycling Units 4 | . 3 . . . . 1 . . Scanalyzers 6 | . . . . . . . . 6 Garrison Access 5 | . . . . . 3 2 . . Terminal Hacks 20 | . 8 1 3 . 5 . 2 1 Record 6 | . . . 3 . 3 . . . Robot Analysis 4 | . 4 . . . . . . . Open Door 2 | . . 1 . . . . 1 . Open DSF 1 | . . . . . . . . 1 Emergency Access Points 1 | . . . . . . . 1 . Terminal Index 1 | . 1 . . . . . . . Unreport Threat 1 | . . . . . 1 . . . Dispatch Records 1 | . 1 . . . . . . . Hauler Manifests 2 | . 2 . . . . . . . Zone Layout 1 | . . . . . 1 . . . Fabricator Hacks . | . . . . . . . . . Repair Station Hacks 4 | . 4 . . . . . . . Scan Component 2 | . 2 . . . . . . . Repair 2 | . 2 . . . . . . . Recycling Unit Hacks 2 | . 1 . . . . 1 . . Retrieve Components 2 | . 1 . . . . 1 . . Scanalyzer 6 | . . . . . . . . 6 Insert Component 3 | . . . . . . . . 3 Analyze 3 | . . . . . . . . 3 Garrison Access Hacks 1 | . . . . . . 1 . . Unlock Access 1 | . . . . . . 1 . . Unauthorized Hacks . | . . . . . . . . . Terminals . | . . . . . . . . . Fabricators . | . . . . . . . . . Repair Stations . | . . . . . . . . . Recycling Units . | . . . . . . . . . Scanalyzers . | . . . . . . . . . Garrison Access . | . . . . . . . . . Data Cores Recovered . | . . . . . . . . . Used . | . . . . . . . . . Hacking Detections 18 | . 8 . . . 5 2 1 2 Full Trace Events 2 | . . . . . 2 . . . Feedback Events 1 | . . . . . 1 . . . Corruption 1 | . . . . . 1 . . . Feedback Blocked . | . . . . . . . . . Robot Schematics Acquired . | . . . . . . . . . Robots Built . | . . . . . . . . . Authchips . | . . . . . . . . . Time . | . . . . . . . . . Total Robot Build Rating . | . . . . . . . . . Part Schematics Acquired 3 | . . . . . . . . 3 Parts Built . | . . . . . . . . . Authchips . | . . . . . . . . . Time . | . . . . . . . . . Total Part Build Rating . | . . . . . . . . . Parts Repaired 2 | . 2 . . . . . . . Time 52 | . 52 . . . . . . . Parts Recycled . | . . . . . . . . . Recycled Matter . | . . . . . . . . . Retrieved Matter . | . . . . . . . . . Retrieved Components 12 | . 10 . . . . 2 . . Parts Scanalyzed 3 | . . . . . . . . 3 Part Schematics Acquired 3 | . . . . . . . . 3 Parts Damaged . | . . . . . . . . . Bothacking | -11 -10 -10 -10 -9 -8 -8 -8 -7 ------------ Run | Jun Mat Min Exi Min Mat Sto Gar Fac Used RIF Installer 1 | . . . . . . . 1 . Robots Hacked 2 | . . . . . . . . 2 Non-combat 1 | . . . . . . . . 1 Combat 1 | . . . . . . . . 1 Robot Hacks Applied 2 | . . . . . . . . 2 parse_system 1 | . . . . . . . . 1 no_distress 1 | . . . . . . . . 1 Relay Couplers Released 4 | . . . . . . . 4 . Machine Destruction 4 | . . . . . . . 4 . Fabnet Peak Effective % . | . . . . . . . . . Robots Rewired 2 | . . . . . . . 2 . Allies Hacked . | . . . . . . . . . Hacks Repelled . | . . . . . . . . . Allies | -11 -10 -10 -10 -9 -8 -8 -8 -7 -------- Run | Jun Mat Min Exi Min Mat Sto Gar Fac Total Allies 6 | . . 3 . . . 1 2 . Largest Group 3 | . . 3 3 3 . 1 2 . Highest-Rated Group 100 | . . 40 40 40 . 100 56 . Highest-Rated Ally 100 | . . 16 16 16 . 100 31 . Total Orders . | . . . . . . . . . Ally Attacks 40 | . . 12 . 4 . 3 21 . Total Damage 835 | . . 117 . 58 . 133 527 . Kills 8 | . . 2 . 1 . 3 2 . Allies Corrupted . | . . . . . . . . . Allies Melted . | . . . . . . . . . Intel | -11 -10 -10 -10 -9 -8 -8 -8 -7 ------- Run | Jun Mat Min Exi Min Mat Sto Gar Fac Robot Analysis Total 4 | . 4 . . . . . . . Derelict Logs Recovered 4 | . . 2 . 2 . . . . Drone Launches . | . . . . . . . . . Drone Recoveries . | . . . . . . . . . Exploration | -11 -10 -10 -10 -9 -8 -8 -8 -7 ------------- Run | Jun Mat Min Exi Min Mat Sto Gar Fac Turns Passed 9986 | 189 1788 1147 1066 937 1546 131 1752 1430 Spaces Moved 4960 | 117 969 697 665 533 559 87 689 644 Core 26 | 24 . . . . . . . 2 Treads 3606 | . 839 697 665 533 448 . 334 90 Legs 517 | 69 . . . . . . 239 209 Wheels 468 | 24 130 . . . 111 87 116 . Hover 343 | . . . . . . . . 343 Flight . | . . . . . . . . . Fastest Speed 50 | 50 80 160 160 160 125 140 125 55 Average Speed 172 | 105 149 160 160 160 217 140 211 175 Slowest Speed 560 | 200 240 160 160 160 320 140 560 560 Overloaded Moves . | . . . . . . . . . Propulsion Burnouts . | . . . . . . . . . Robots Hopped . | . . . . . . . . . Cave-ins Triggered 1 | . . . . . . . . 1 Exploration Rate (%) 56 | 6 96 99 93 86 31 14 69 13 Regions Visited 8 Branch Regions 4 Pre-discovered Areas 2 | . . 2 . . . . . . Known Exits Taken 3 | . . . . 1 1 1 . . Unknown Exits Taken 4 | 1 1 1 1 . . . . . Scrap Searched 3 | . . 2 . 1 . . . . Spaces Dug 37 | . . . . 12 4 . 8 13 Terrain Destroyed 236 | . 33 . . 12 69 . 54 68 Melee 4 | . . . . . 4 . . . Projectile . | . . . . . . . . . AOE 232 | . 33 . . 12 65 . 54 68 Terrain Rammed . | . . . . . . . . . Walls Destroyed . | . . . . . . . . . Machines Disabled . | . . . . . . . . . Actions | -11 -10 -10 -10 -9 -8 -8 -8 -7 --------- Run | Jun Mat Min Exi Min Mat Sto Gar Fac Total 5990 | 152 1205 718 668 582 808 93 906 858 Wait 298 | . 86 9 . 20 106 1 18 58 Move 4951 | 116 968 696 664 532 558 86 687 644 Hop . | . . . . . . . . . Pick Up 128 | 9 25 2 1 2 35 2 31 21 Fast Attach 61 | 9 12 1 1 2 9 . 16 11 Attach 36 | . 5 . . . 7 1 9 14 Detach 21 | . 3 . . . 5 . 5 8 Swap 51 | . 13 . . 3 10 . 14 11 Drop 133 | 3 30 3 2 4 27 1 40 23 Fire 253 | 15 60 6 . 18 43 2 59 50 Melee 15 | . . . . . 8 . . 7 Ram 6 | . . . . . . . . 6 Kick 4 | . . . . . . . . 4 Crush 5 | . 3 1 . 1 . . . . Escape Stasis 16 | . . . . . . . 16 . Rewire 12 | . . . . . . . 11 1 Trap . | . . . . . . . . . Miscellaneous . | . . . . . . . . . Route ------- -11/Junkyard -10/Materials (discovered 4 exits: [*Mat x3] / *Min) -10/Mines (discovered 3 exits: [*Mat x2] / *Exi) -10/Exiles (discovered 2 exits: [*Min x2]) -9/Mines (discovered 2 exits: *Mat x2) -8/Materials -8/Storage -8/Garrison -7/Factory (discovered 1 exit: [*Fac]) History --------- Turn | Location | Event 24 | -11/Junkyard | Discovered new exit (range 16) 190 | -11/Junkyard | Entered Materials 350 | -10/Materials | Discovered new exit (range 16) 705 | -10/Materials | Discovered new exit (range 8) 764 | -10/Materials | Build established: Scavenger-Mutant 930 | -10/Materials | Discovered new exit (range 9) 1215 | -10/Materials | Build established: Mutant 1553 | -10/Materials | Repaired Lgt. Treads 1583 | -10/Materials | Repaired Ion Engine 1750 | -10/Materials | Discovered new exit (range 10) 1978 | -10/Materials | Entered Mines 1983 | -10/Mines | Met a Derelict bent on vengeance 2015 | -10/Mines | Found the Drone Emporium 2034 | -10/Mines | Learned Materials garrison access intel 2072 | -10/Mines | Discovered new exit (range 3) 2399 | -10/Mines | Discovered new exit (range 8) 2431 | -10/Mines | Deemed a non-threat by the Exiles lab entrance 2432 | -10/Mines | Discovered new exit (range 5) 2646 | -10/Mines | Assisted by bots powering up and referring to "LRC-V3" 2799 | -10/Mines | Learned location of Storage (-8) 3022 | -10/Mines | Excavation squad dispatched 3022 | -10/Mines | A large section of the Mines collapsed 3125 | -10/Mines | Entered Exiles 3125 | -10/Exiles | Found Exiles lab abandoned 3125 | -10/Exiles | Accompanied by 3 allies 3156 | -10/Exiles | Discovered new exit (range 15) 3974 | -10/Exiles | Discovered new exit (range 14) 4191 | -10/Exiles | Entered Mines 4191 | -9/Mines | Accompanied by 3 allies 4204 | -9/Mines | Discovered new exit (range 9) 4209 | -9/Mines | Learned Materials trap positions 4333 | -9/Mines | Discovered new exit (range 7) 4412 | -9/Mines | Learned Materials stockpile data 4939 | -9/Mines | Identified exit to Materials 5128 | -9/Mines | Entered Materials 5128 | -8/Materials | Evolved 4 slots: Propulsion x2, Utility x2 5129 | -8/Materials | Loaded intel: 15 trap records 5131 | -8/Materials | Loaded intel: 1 garrison access location 5429 | -8/Materials | Build established: Scavenger-Mutant 5568 | -8/Materials | Garrison activated, responded to threat 5609 | -8/Materials | Discovered new exit (range 15) 5651 | -8/Materials | Identified exit to Storage 6674 | -8/Materials | Entered Storage 6756 | -8/Storage | Met 01-MTF 6803 | -8/Storage | Identified exit to Garrison 6805 | -8/Storage | Entered Garrison 6805 | -8/Garrison | Accompanied by 1 ally (01-MTF) 6810 | -8/Garrison | 01-MTF left 6845 | -8/Garrison | Triggered checkpoint 7090 | -8/Garrison | Lost 3 parts (1p1n1u) 7547 | -8/Garrison | Triggered checkpoint 7666 | -8/Garrison | Triggered checkpoint 7930 | -8/Garrison | Triggered checkpoint 8126 | -8/Garrison | Discovered new exit (range 10) 8145 | -8/Garrison | Identified exit to Factory 8325 | -8/Garrison | Spotted B-75 Beast 8360 | -8/Garrison | Destroyed B-75 Beast 8456 | -8/Garrison | Installed Relay Interface Framework 8557 | -8/Garrison | Entered Factory 8557 | -7/Factory | Evolved 2 slots: Utility x1, Weapon x1 9105 | -7/Factory | Build established: Scavenger-Tank 9260 | -7/Factory | Cargo convoy interrupted 9836 | -7/Factory | Lost 3 parts (1p1n1w) 9870 | -7/Factory | Discovered new exit (range 11) 9932 | -7/Factory | Core integrity fell below 50% 9955 | -7/Factory | Core integrity fell below 20% 9981 | -7/Factory | Crushed by falling debris 9987 | -7/Factory | Destroyed self with Heavy Rocket Launcher Last Messages --------------- 09972_ U-05 Engineer lays Concrete. 09975_ R-06 Scavenger destroyed. 09975_ G-47 Trooper destroyed. 09975_ U-05 Engineer lays Concrete. 09977_ G-47 Trooper destroyed. 09977_ Destroyed Shock Rifle. 09977_ Mic. Fission Core destroyed. 09977_ Destroyed Mic. Fission Core. 09977_ U-05 Engineer lays Concrete. 09979_ The unstable cave ceiling collapses. 09979_ Destroyed Imp. Heat Sink. 09980_ U-05 Engineer lays Concrete. 09981_ The unstable cave ceiling collapses. 09981_ Crushed by falling debris. 09981_ Surge Thruster destroyed. 09981_ System corrupted by crushing effect (+2). 09981_ Subcomponent Replicator disabled. 09987_ P-60 Hacker destroyed. 09987_ Hvy. Rocket Launcher destroyed. 09987_ Destroyed Hvy. Rocket Launcher. Map ----- +----------------------------------------------------+ | # # """ """ # ######/#### | | # # """ """ # ## # | | / / # # """ # | | #### # """ """ # # """ # | | ???# # """ """ + # """ # | | ???# # """ """ # / # | | ???# #" # # """ # | | ???# #T # # """ # | | ???" #" ] # # """ # | | ???# # # # # | | ???# #####+######## ######### | | ???? ?????????????# ????????? | | ???? ????????????? ????????? | | ????